bitfinex/quotes_BTCUSD_20241011
["timestamp","ask_amount","ask_price","bid_price","bid_amount"]
[1728624358800,0.20775813,60649.0,60648.0,0.151032]
[1728624359531,0.20775844,60649.0,60648.0,0.151032]
[1728624360045,0.20775844,60649.0,60648.0,0.246932]
[1728624360532,0.01544914,60649.0,60648.0,0.246932]
[1728624360768,0.01544914,60649.0,60648.0,0.2502293]
[1728624361272,0.023,60651.0,60650.0,0.296784]
[1728624361489,0.1923093,60655.0,60652.0,0.148387]
[1728624361703,0.023,60653.0,60652.0,0.148387]
[1728624361916,0.20775922,60653.0,60652.0,0.148387]
[1728624363247,0.20775922,60653.0,60652.0,0.153387]
[1728624363527,0.20775922,60653.0,60652.0,0.005]
[1728624364422,0.2077629,60653.0,60652.0,0.005]
[1728624364866,0.44234812,60653.0,60652.0,0.002]
[1728624365330,0.29396312,60653.0,60652.0,0.005]
[1728624366508,0.71621068,60653.0,60652.0,0.005]
[1728624366725,0.9316553,60653.0,60652.0,0.005]
[1728624366944,0.80804834,60653.0,60652.0,0.005]
[1728624367180,0.82023457,60653.0,60652.0,0.005]
[1728624367404,0.80478097,60653.0,60652.0,0.005]
[1728624367628,0.96845206,60653.0,60652.0,0.002]
[1728624367843,0.148394,60649.0,60648.0,0.000817]
[1728624368084,0.71230374,60649.0,60648.0,0.000817]
[1728624368319,1.08580915,60649.0,60648.0,0.000817]
[1728624368590,0.9777897,60649.0,60648.0,0.000817]
[1728624368798,1.10124872,60649.0,60648.0,0.000817]
[1728624369278,0.9807897,60649.0,60648.0,0.000817]
[1728624369498,0.9787897,60649.0,60648.0,0.000817]
[1728624369720,1.35299628,60649.0,60648.0,0.000817]
[1728624369936,1.10524872,60649.0,60648.0,0.000817]
[1728624370160,1.08048988,60649.0,60648.0,0.000817]
[1728624370591,1.08049169,60649.0,60648.0,0.000817]
[1728624370812,1.08047154,60649.0,60648.0,0.000817]
[1728624371460,0.98176955,60649.0,60648.0,0.000817]
[1728624372320,1.08041977,60649.0,60648.0,0.000817]
[1728624373187,0.98176955,60649.0,60648.0,0.000817]
[1728624373428,0.98340355,60649.0,60648.0,0.000817]
[1728624374140,1.05735968,60649.0,60648.0,0.000817]
[1728624377214,0.98340355,60649.0,60648.0,0.000817]
[1728624381327,1.03267327,60649.0,60648.0,0.000817]
[1728624383342,0.81100311,60649.0,60648.0,0.000817]
[1728624383551,0.96798044,60649.0,60648.0,0.000817]
[1728624383757,0.98337777,60649.0,60648.0,0.000817]
[1728624385071,0.81097733,60649.0,60648.0,0.000817]
[1728624385304,0.98337777,60649.0,60648.0,0.000817]
[1728624386864,0.81393507,60649.0,60648.0,0.000817]
[1728624387075,0.81393874,60649.0,60648.0,0.000817]
[1728624390396,0.79853774,60649.0,60648.0,0.000817]
[1728624390722,0.8139457,60649.0,60648.0,0.000817]
[1728624393821,0.79853774,60649.0,60648.0,0.000817]
[1728624394068,0.98340438,60649.0,60648.0,0.000817]
[1728624396278,1.03268616,60649.0,60648.0,0.000817]
[1728624397138,0.98340438,60649.0,60648.0,0.000817]
[1728624398227,1.03268616,60649.0,60648.0,0.000817]
[1728624399651,1.03270878,60649.0,60648.0,0.000817]
[1728624400689,1.01728484,60649.0,60648.0,0.000817]
[1728624400894,1.03274505,60649.0,60648.0,0.000817]
[1728624401559,0.98344065,60649.0,60648.0,0.000817]
[1728624402584,0.90284065,60649.0,60648.0,0.000817]
[1728624404027,0.90284095,60649.0,60648.0,0.000817]
[1728624404274,0.97679755,60649.0,60648.0,0.000817]
[1728624404680,0.96133704,60649.0,60648.0,0.000817]
[1728624404896,0.97679772,60649.0,60648.0,0.000817]
[1728624406187,0.90284112,60649.0,60648.0,0.000817]
[1728624406396,0.97685042,60649.0,60648.0,0.000817]
[1728624406627,0.97685046,60649.0,60648.0,0.000817]
[1728624407044,0.96138978,60649.0,60648.0,0.000817]
[1728624407223,0.97685366,60649.0,60648.0,0.000817]
[1728624407501,1.00145075,60649.0,60648.0,0.000817]
[1728624407711,0.83200805,60649.0,60648.0,0.000817]
[1728624408127,0.73280805,60649.0,60648.0,0.000817]
[1728624408775,0.70825011,60649.0,60648.0,0.000817]
[1728624409231,0.73280805,60649.0,60648.0,0.000817]
[1728624409449,0.90225075,60649.0,60648.0,0.000817]
[1728624409668,0.73280805,60649.0,60648.0,0.000817]
[1728624409884,0.63419925,60649.0,60648.0,0.000817]
[1728624410759,0.61873774,60649.0,60648.0,0.000817]
[1728624410972,0.6342022,60649.0,60648.0,0.000817]
[1728624411194,0.8036449,60649.0,60648.0,0.000817]
[1728624414491,0.78818044,60649.0,60648.0,0.000817]
[1728624415101,0.80364883,60649.0,60648.0,0.000817]
[1728624420644,0.63420613,60649.0,60648.0,0.000817]
[1728624425045,0.72570613,60649.0,60648.0,0.000817]
[1728624425406,0.248404,60645.0,60641.0,0.0002]
[1728624425705,0.62858213,60645.0,60641.0,0.0002]
[1728624425877,0.79802483,60645.0,60641.0,0.0002]
[1728624426486,1.04327151,60645.0,60641.0,0.0002]
[1728624426705,0.89482483,60645.0,60641.0,0.0002]
[1728624426932,1.04326829,60645.0,60641.0,0.0002]
[1728624427631,0.89482483,60645.0,60644.0,0.001818]
[1728624428289,0.92062987,60645.0,60644.0,0.001818]
[1728624428477,1.06907333,60645.0,60644.0,0.001818]
[1728624428919,0.98287311,60645.0,60644.0,0.001818]
[1728624429134,1.06907333,60645.0,60644.0,0.001818]
[1728624429355,0.83442965,60645.0,60644.0,0.001818]
[1728624429856,0.83442965,60645.0,60644.0,0.000818]
[1728624431620,0.84608106,60645.0,60644.0,0.000818]
[1728624432711,0.83061267,60645.0,60644.0,0.000818]
[1728624432927,1.08069723,60645.0,60644.0,0.000818]
[1728624434885,0.93227276,60645.0,60644.0,0.000818]
[1728624436050,0.93227276,60645.0,60634.0,0.000818]
[1728624436051,0.153429,60635.0,60634.0,0.000818]
[1728624436275,0.53193852,60635.0,60634.0,0.000818]
[1728624436493,0.69579168,60635.0,60634.0,0.000818]
[1728624436709,0.54739839,60635.0,60634.0,0.000818]
[1728624436922,0.55507337,60635.0,60634.0,0.000818]
[1728624437157,0.62212799,60635.0,60634.0,0.000818]
[1728624437810,0.61712799,60635.0,60634.0,0.000818]
[1728624438037,0.60943389,60635.0,60634.0,0.000818]
[1728624438946,0.46119817,60635.0,60634.0,0.000818]
[1728624440657,0.58463098,60635.0,60634.0,0.000818]
[1728624440855,0.46119817,60635.0,60634.0,0.000818]
[1728624441090,0.64225786,60635.0,60634.0,0.000818]
[1728624441293,0.7656715,60635.0,60634.0,0.000818]
[1728624441498,0.64225786,60635.0,60634.0,0.000818]
[1728624442984,0.64221454,60635.0,60634.0,0.000818]
[1728624445029,0.76556842,60635.0,60634.0,0.000818]
[1728624445237,0.74089277,60635.0,60634.0,0.000818]
[1728624445683,0.85676842,60635.0,60634.0,0.000818]
[1728624446318,0.85673626,60635.0,60634.0,0.000818]
[1728624446535,0.73341454,60635.0,60634.0,0.000818]
[1728624446743,0.73341454,60635.0,60634.0,0.001818]
[1728624446945,0.85773141,60635.0,60634.0,0.001818]
[1728624447359,0.86073141,60635.0,60634.0,0.002818]
[1728624447765,0.93793141,60635.0,60634.0,0.002818]
[1728624447988,0.81461454,60635.0,60634.0,0.002818]
[1728624451165,1.0623621,60635.0,60634.0,0.002818]
[1728624451379,0.81461454,60635.0,60634.0,0.002818]
[1728624453676,0.73741454,60635.0,60634.0,0.002818]
[1728624453893,0.7447777,60635.0,60634.0,0.002818]
[1728624454105,0.74477606,60635.0,60634.0,0.002818]
[1728624454528,0.64621454,60635.0,60634.0,0.002818]
[1728624455464,0.74477606,60635.0,60634.0,0.002818]
[1728624456749,0.72935951,60635.0,60634.0,0.002818]
[1728624456963,0.63079799,60635.0,60634.0,0.002818]
[1728624457171,0.74477316,60635.0,60634.0,0.002818]
[1728624457797,0.64621164,60635.0,60634.0,0.002818]
[1728624459072,0.74476252,60635.0,60634.0,0.002818]
[1728624460269,0.74477318,60635.0,60634.0,0.002818]
[1728624460518,0.6462223,60635.0,60634.0,0.002818]
[1728624462279,0.7694109,60635.0,60634.0,0.002818]
[1728624463157,0.76944265,60635.0,60634.0,0.002818]
[1728624463380,0.73242252,60635.0,60634.0,0.002818]
[1728624463620,0.71699821,60635.0,60634.0,0.002818]
[1728624463875,0.73243673,60635.0,60634.0,0.002818]
[1728624464116,0.85565708,60635.0,60634.0,0.002818]
[1728624465283,0.85570692,60635.0,60634.0,0.002818]
[1728624467759,0.73243673,60635.0,60634.0,0.002818]
[1728624476386,0.88030115,60635.0,60634.0,0.002818]
[1728624478478,0.73243673,60635.0,60634.0,0.002818]
[1728624481396,0.89933005,60635.0,60634.0,0.002818]
[1728624482738,0.90699342,60635.0,60634.0,0.002818]
[1728624483171,0.90702339,60635.0,60634.0,0.002818]
[1728624486603,0.90702184,60635.0,60634.0,0.002818]
[1728624488280,0.93283156,60635.0,60634.0,0.002818]
[1728624489932,0.93283278,60635.0,60634.0,0.002818]
[1728624491125,0.92783278,60635.0,60634.0,0.002818]
[1728624491372,0.73992894,60635.0,60634.0,0.002818]
[1728624491628,0.56568704,60635.0,60634.0,0.002818]
[1728624491881,0.55802367,60635.0,60634.0,0.002818]
[1728624492119,0.35502367,60635.0,60634.0,0.001818]
[1728624492373,0.40463546,60635.0,60634.0,0.097718]
[1728624492638,0.49483568,60635.0,60634.0,0.099718]
[1728624493161,0.49383568,60635.0,60634.0,0.098718]
[1728624493400,0.47980853,60635.0,60634.0,0.098718]
[1728624493646,0.47880853,60635.0,60634.0,0.097718]
[1728624493894,0.40562609,60635.0,60634.0,0.097718]
[1728624494131,0.52659054,60635.0,60634.0,0.097718]
[1728624494366,0.42762609,60635.0,60634.0,0.097718]
[1728624494890,0.43062609,60635.0,60634.0,0.098718]
[1728624495319,0.5027885,60635.0,60634.0,0.097718]
[1728624495762,0.48932971,60635.0,60634.0,0.097718]
[1728624496062,0.49032971,60635.0,60634.0,0.097718]
[1728624496325,0.48632971,60635.0,60634.0,0.097718]
[1728624496584,0.49032971,60635.0,60634.0,0.097718]
[1728624496820,0.48932971,60635.0,60634.0,0.097718]
[1728624497263,0.49032971,60635.0,60634.0,0.097718]
[1728624497509,0.49032135,60635.0,60634.0,0.097718]
[1728624497963,0.48732135,60635.0,60634.0,0.097718]
[1728624498189,0.49032135,60635.0,60634.0,0.097718]
[1728624498451,0.48932135,60635.0,60634.0,0.097718]
[1728624498695,0.48732135,60635.0,60634.0,0.097718]
[1728624499193,0.49032135,60635.0,60634.0,0.097718]
[1728624499436,0.4161673,60635.0,60634.0,0.097718]
[1728624499954,0.4178013,60635.0,60634.0,0.097718]
[1728624501414,0.4178013,60635.0,60634.0,0.000818]
[1728624502113,0.51665028,60635.0,60634.0,0.000818]
[1728624504515,0.51665072,60635.0,60634.0,0.000818]
[1728624506847,0.4178013,60635.0,60634.0,0.000818]
[1728624507800,0.49193043,60635.0,60634.0,0.000818]
[1728624508433,0.3463723,60635.0,60634.0,0.169318]
[1728624510711,0.3433723,60635.0,60634.0,0.169318]
[1728624510912,0.3443723,60635.0,60634.0,0.169318]
[1728624511113,0.3443723,60635.0,60634.0,0.170318]
[1728624511339,0.3423723,60635.0,60634.0,0.169318]
[1728624511721,0.3423723,60635.0,60634.0,0.174318]
[1728624513000,0.3193723,60635.0,60634.0,0.174318]
[1728624513650,0.150063,60635.0,60634.0,0.174318]
[1728624521099,0.001634,60635.0,60634.0,0.174318]
[1728624522604,0.001634,60635.0,60634.0,0.1776161]
[1728624523129,0.001634,60635.0,60634.0,0.174318]
[1728624524112,0.01707468,60635.0,60634.0,0.174318]
[1728624525096,0.01707468,60635.0,60634.0,0.190937]
[1728624525334,0.001634,60635.0,60634.0,0.190937]
[1728624526029,0.150063,60635.0,60634.0,0.190937]
[1728624526273,0.16550174,60635.0,60634.0,0.190937]
[1728624526600,0.01707274,60635.0,60634.0,0.190937]
[1728624527511,0.001634,60635.0,60634.0,0.190937]
[1728624531926,0.01707209,60635.0,60634.0,0.190937]
[1728624532750,0.01707293,60635.0,60634.0,0.190937]
[1728624533591,0.01707417,60635.0,60634.0,0.190937]
[1728624537247,0.001634,60635.0,60634.0,0.190937]
[1728624537456,0.0170811,60635.0,60634.0,0.190937]
[1728624539630,0.0170811,60635.0,60634.0,0.3426661]
[1728624539852,0.0170811,60635.0,60634.0,0.339368]
[1728624540080,0.001634,60635.0,60634.0,0.339368]
[1728624540316,0.01709,60635.0,60634.0,0.339368]
[1728624540551,0.001634,60635.0,60634.0,0.339368]
[1728624540757,0.01709083,60635.0,60634.0,0.339368]
[1728624541454,0.01709083,60635.0,60634.0,0.336368]
[1728624541697,0.01709083,60635.0,60634.0,0.337368]
[1728624541895,0.01709083,60635.0,60634.0,0.334368]
[1728624542168,0.01709083,60635.0,60634.0,0.336368]
[1728624542663,0.01709141,60635.0,60634.0,0.334368]
[1728624542884,0.01709141,60635.0,60634.0,0.339368]
[1728624545776,0.01709338,60635.0,60634.0,0.339368]
[1728624549112,0.01709668,60635.0,60634.0,0.339368]
[1728624550770,0.01709668,60635.0,60634.0,0.190937]
[1728624553227,0.01709668,60635.0,60634.0,0.339368]
[1728624562418,0.001634,60635.0,60634.0,0.339368]
[1728624562617,0.01710205,60635.0,60634.0,0.339368]
[1728624563758,0.001634,60635.0,60634.0,0.339368]
[1728624563966,0.01710252,60635.0,60634.0,0.339368]
[1728624572373,0.001634,60635.0,60634.0,0.339368]
[1728624572561,0.01710732,60635.0,60634.0,0.339368]
[1728624575408,0.01710732,60635.0,60634.0,0.248368]
[1728624582209,0.001634,60635.0,60634.0,0.248368]
[1728624582426,0.01710915,60635.0,60634.0,0.248368]
[1728624585056,0.01710915,60635.0,60634.0,0.170868]
[1728624585520,0.001634,60635.0,60634.0,0.170868]
[1728624585740,0.01710871,60635.0,60634.0,0.170868]
[1728624585962,0.001634,60635.0,60634.0,0.170868]
[1728624586170,0.01710871,60635.0,60634.0,0.170868]
[1728624589342,0.001634,60635.0,60634.0,0.170868]
[1728624591730,0.01710843,60635.0,60634.0,0.170868]
[1728624595528,0.0171081,60635.0,60634.0,0.170868]
[1728624597880,0.0171081,60635.0,60634.0,0.022437]
[1728624598107,0.1118081,60635.0,60634.0,0.022437]
[1728624598706,0.1118081,60635.0,60634.0,0.019437]
[1728624598953,0.1118081,60635.0,60634.0,0.022437]
[1728624599212,0.096334,60635.0,60634.0,0.022437]
[1728624599464,0.11180709,60635.0,60634.0,0.020437]
[1728624599679,0.11180709,60635.0,60634.0,0.022437]
[1728624601586,0.096334,60635.0,60634.0,0.022437]
[1728624601805,0.11180426,60635.0,60634.0,0.022437]
[1728624604845,0.096334,60635.0,60634.0,0.022437]
[1728624605084,0.11179889,60635.0,60634.0,0.022437]
[1728624608108,0.11179913,60635.0,60634.0,0.022437]
[1728624608326,0.11179746,60635.0,60634.0,0.022437]
[1728624608548,0.01709746,60635.0,60634.0,0.170868]
[1728624608761,0.01709746,60635.0,60634.0,0.022437]
[1728624608975,0.01709746,60635.0,60634.0,0.170868]
[1728624609187,0.01709746,60635.0,60634.0,0.022437]
[1728624609924,0.01709746,60635.0,60634.0,0.170868]
[1728624610182,0.01709746,60635.0,60634.0,0.17416614]
[1728624610452,0.01709746,60635.0,60634.0,0.26536636]
[1728624610713,0.01709746,60635.0,60634.0,0.25886614]
[1728624611214,0.001634,60635.0,60634.0,0.38263926]
[1728624611503,0.001634,60635.0,60634.0,0.37934112]
[1728624611718,0.001634,60635.0,60634.0,0.255568]
[1728624611957,0.001634,60635.0,60634.0,0.25886568]
[1728624612205,0.001634,60635.0,60634.0,0.3826388]
[1728624612461,0.001634,60635.0,60634.0,0.37934112]
[1728624612699,0.001634,60635.0,60634.0,0.255568]
[1728624612954,0.001634,60635.0,60634.0,0.35566568]
[1728624613197,0.001634,60635.0,60634.0,0.352368]
[1728624613418,0.001634,60635.0,60634.0,0.47614112]
[1728624613651,0.001634,60635.0,60634.0,0.352368]
[1728624613908,0.001634,60635.0,60634.0,0.347368]
[1728624614165,0.001634,60635.0,60634.0,0.352368]
[1728624614681,0.001634,60635.0,60634.0,0.45126395]
[1728624615480,0.001634,60635.0,60634.0,0.44826395]
[1728624615975,0.001634,60635.0,60634.0,0.72653369]
[1728624616217,0.001634,60635.0,60634.0,0.60787752]
[1728624616713,0.001634,60635.0,60634.0,0.60587752]
[1728624616956,0.001634,60635.0,60634.0,0.70787752]
[1728624617429,0.001634,60635.0,60634.0,0.70487752]
[1728624618623,0.001634,60635.0,60634.0,0.70287752]
[1728624618869,0.001634,60635.0,60634.0,0.70487752]
[1728624619163,0.001634,60635.0,60634.0,0.70787752]
[1728624619385,0.001634,60635.0,60634.0,0.70287752]
[1728624619620,0.001634,60635.0,60634.0,0.75628738]
[1728624619848,0.001634,60635.0,60634.0,0.75928738]
[1728624620077,0.001634,60635.0,60634.0,0.75428738]
[1728624620311,0.001634,60635.0,60634.0,0.90538886]
[1728624620541,0.001634,60635.0,60634.0,0.90738886]
[1728624620766,0.001634,60635.0,60634.0,0.75928738]
[1728624620994,0.001634,60635.0,60634.0,0.90734835]
[1728624621479,0.001634,60635.0,60634.0,0.75928738]
[1728624621720,0.001634,60635.0,60634.0,0.75428738]
[1728624621972,0.001634,60635.0,60634.0,0.75928738]
[1728624622220,0.001634,60635.0,60634.0,0.75628738]
[1728624622695,0.001634,60635.0,60634.0,0.70787752]
[1728624623454,0.001634,60635.0,60634.0,0.70587752]
[1728624624617,0.001634,60635.0,60634.0,0.70287752]
[1728624624843,0.001634,60635.0,60634.0,0.70487752]
[1728624625087,0.001634,60635.0,60634.0,0.70787752]
[1728624627711,0.001634,60635.0,60634.0,0.83108687]
[1728624628055,0.001634,60635.0,60634.0,0.82608687]
[1728624628255,0.001634,60635.0,60634.0,0.83108687]
[1728624632506,0.001634,60635.0,60634.0,0.70787752]
[1728624632954,0.001634,60635.0,60634.0,0.83108687]
[1728624634191,0.001634,60635.0,60634.0,0.70787752]
[1728624634406,0.001634,60635.0,60634.0,0.83102505]
[1728624634836,0.001634,60635.0,60634.0,0.70787752]
[1728624635049,0.001634,60635.0,60634.0,0.83101956]
[1728624636404,0.001634,60635.0,60634.0,0.70787752]
[1728624636660,0.001634,60635.0,60634.0,0.83101364]
[1728624638468,0.001634,60635.0,60634.0,0.82901364]
[1728624638713,0.001634,60635.0,60634.0,0.83101364]
[1728624639152,0.001634,60635.0,60634.0,0.82601364]
[1728624639625,0.001634,60635.0,60634.0,0.82801364]
[1728624640541,0.001634,60635.0,60634.0,0.83101364]
[1728624640759,0.001634,60635.0,60634.0,0.88236831]
[1728624641009,0.001634,60635.0,60634.0,0.87936831]
[1728624641223,0.001634,60635.0,60634.0,0.88236831]
[1728624643858,0.001634,60635.0,60634.0,0.75923219]
[1728624644333,0.001634,60635.0,60634.0,0.88238316]
[1728624644805,0.001634,60635.0,60634.0,0.88338316]
[1728624645031,0.001634,60635.0,60634.0,0.87938316]
[1728624645476,0.001634,60635.0,60634.0,0.88038316]
[1728624645703,0.001634,60635.0,60634.0,0.75423219]
[1728624645946,0.001634,60635.0,60634.0,0.75623219]
[1728624647041,0.001634,60635.0,60634.0,0.87741165]
[1728624647299,0.001634,60635.0,60634.0,0.88041165]
[1728624647518,0.001634,60635.0,60634.0,0.75423219]
[1728624647731,0.001634,60635.0,60634.0,0.75923219]
[1728624648157,0.001634,60635.0,60634.0,0.75423219]
[1728624648374,0.001634,60635.0,60634.0,0.75923219]
[1728624648595,0.001634,60635.0,60634.0,0.66443219]
[1728624649464,0.001634,60635.0,60634.0,0.58473219]
[1728624654545,0.001634,60635.0,60634.0,0.73274985]
[1728624655668,0.001634,60635.0,60634.0,0.58473219]
[1728624656096,0.001634,60635.0,60634.0,0.67093241]
[1728624656995,0.001634,60635.0,60634.0,0.66893241]
[1728624657212,0.001634,60635.0,60634.0,0.67093241]
[1728624657637,0.001634,60635.0,60634.0,0.66893241]
[1728624657892,0.001634,60635.0,60634.0,0.67093241]
[1728624661547,0.001634,60635.0,60634.0,0.88948974]
[1728624661783,0.001634,60635.0,60634.0,0.7170893]
[1728624662007,0.001634,60635.0,60634.0,0.58273219]
[1728624662489,0.184134,60635.0,60634.0,0.37557292]
[1728624662728,0.184134,60635.0,60634.0,0.025437]
[1728624663173,0.184134,60635.0,60634.0,0.0719002]
[1728624663407,0.184134,60635.0,60634.0,0.022437]
[1728624663631,0.184134,60635.0,60634.0,0.017437]
[1728624663853,0.184134,60635.0,60634.0,0.019437]
[1728624664086,0.184134,60635.0,60634.0,0.170868]
[1728624664313,0.184134,60635.0,60634.0,0.165868]
[1728624664530,0.184134,60635.0,60634.0,0.168868]
[1728624664978,0.184134,60635.0,60634.0,0.17216624]
[1728624665205,0.184134,60635.0,60634.0,0.22163077]
[1728624665452,0.184134,60635.0,60634.0,0.25135472]
[1728624665715,0.184134,60635.0,60634.0,0.25335472]
[1728624665953,0.001634,60635.0,60634.0,0.17916624]
[1728624667120,0.001634,60635.0,60634.0,0.25326144]
[1728624667341,0.001634,60635.0,60634.0,0.25026144]
[1728624667578,0.001634,60635.0,60634.0,0.22356093]
[1728624667796,0.001634,60635.0,60634.0,0.22656093]
[1728624668054,0.001634,60635.0,60634.0,0.22356093]
[1728624668311,0.001634,60635.0,60634.0,0.22326269]
[1728624668529,0.001634,60635.0,60634.0,0.173868]
[1728624668759,0.001634,60635.0,60634.0,0.22326505]
[1728624668981,0.001634,60635.0,60634.0,0.173868]
[1728624669204,0.001634,60635.0,60634.0,0.175868]
[1728624669689,0.001634,60635.0,60634.0,0.173868]
[1728624669911,0.001634,60635.0,60634.0,0.17716602]
[1728624670136,0.001634,60635.0,60634.0,0.17616602]
[1728624670589,0.001634,60635.0,60634.0,0.17916602]
[1728624671266,0.001634,60635.0,60634.0,0.18016602]
[1728624671487,0.001634,60635.0,60634.0,0.17416602]
[1728624671710,0.001634,60635.0,60634.0,0.17716602]
[1728624672852,0.001634,60635.0,60634.0,0.17916602]
[1728624673320,0.001634,60635.0,60634.0,0.17716602]
[1728624673568,0.001634,60635.0,60634.0,0.17916602]
[1728624682446,0.001634,60635.0,60634.0,0.17716602]
[1728624682697,0.001634,60635.0,60634.0,0.17916602]
[1728624683132,0.001634,60635.0,60634.0,0.17716602]
[1728624683662,0.001634,60635.0,60634.0,0.17916602]
[1728624683921,0.001634,60635.0,60634.0,0.17716602]
[1728624684177,0.001634,60635.0,60634.0,0.17416602]
[1728624684426,0.001634,60635.0,60634.0,0.17716602]
[1728624684897,0.001634,60635.0,60634.0,0.17916602]
[1728624686336,0.001634,60635.0,60634.0,0.17716602]
[1728624686576,0.001634,60635.0,60634.0,0.17916602]
[1728624689150,0.001634,60635.0,60634.0,0.22352362]
[1728624689392,0.001634,60635.0,60634.0,0.17716602]
[1728624689625,0.001634,60635.0,60634.0,0.17916602]
[1728624689853,0.001634,60635.0,60634.0,0.17716602]
[1728624690077,0.001634,60635.0,60634.0,0.22652864]
[1728624690327,0.001634,60635.0,60634.0,0.22852888]
[1728624690531,0.001634,60635.0,60634.0,0.22853003]
[1728624690736,0.001634,60635.0,60634.0,0.17616602]
[1728624690947,0.001634,60635.0,60634.0,0.17816602]
[1728624691153,0.001634,60635.0,60634.0,0.17716602]
[1728624691768,0.001634,60635.0,60634.0,0.25120242]
[1728624692417,0.001634,60635.0,60634.0,0.24820242]
[1728624692624,0.001634,60635.0,60634.0,0.25320242]
[1728624692835,0.001634,60635.0,60634.0,0.17616602]
[1728624693062,0.001634,60635.0,60634.0,0.24820242]
[1728624693300,0.001634,60635.0,60634.0,0.25320242]
[1728624693487,0.001634,60635.0,60634.0,0.25020242]
[1728624693627,0.001634,60635.0,60634.0,0.2499044]
[1728624693833,0.001634,60635.0,60634.0,0.25122805]
[1728624694040,0.001634,60635.0,60634.0,0.24993024]
[1728624695050,0.001634,60635.0,60634.0,0.25322804]
[1728624695411,0.001634,60635.0,60634.0,0.24693024]
[1728624695627,0.001634,60635.0,60634.0,0.24493024]
[1728624695833,0.001634,60635.0,60634.0,0.24993024]
[1728624696485,0.001634,60635.0,60634.0,0.175868]
[1728624697154,0.001634,60635.0,60634.0,0.170868]
[1728624697374,0.001634,60635.0,60634.0,0.175868]
[1728624697808,0.001634,60635.0,60634.0,0.24995376]
[1728624698455,0.001634,60635.0,60634.0,0.33615398]
[1728624698736,0.001634,60635.0,60634.0,0.26206822]
[1728624699155,0.001634,60635.0,60634.0,0.25906822]
[1728624699371,0.001634,60635.0,60634.0,0.25706822]
[1728624699580,0.001634,60635.0,60634.0,0.35885545]
[1728624699799,0.001634,60635.0,60634.0,0.35985545]
[1728624700020,0.001634,60635.0,60634.0,0.36085545]
[1728624700231,0.001634,60635.0,60634.0,0.35885545]
[1728624700444,0.001634,60635.0,60634.0,0.36085545]
[1728624701763,0.001634,60635.0,60634.0,0.35585545]
[1728624702182,0.001634,60635.0,60634.0,0.36085545]
[1728624702388,0.001634,60635.0,60634.0,0.35785545]
[1728624702605,0.001634,60635.0,60634.0,0.35885545]
[1728624703027,0.001634,60635.0,60634.0,0.36092482]
[1728624703663,0.001634,60635.0,60634.0,0.26206822]
[1728624704354,0.001634,60635.0,60634.0,0.175868]
[1728624704573,0.176234,60635.0,60634.0,0.022437]
[1728624704793,0.4939723,60635.0,60634.0,0.022437]
[1728624705009,0.5169723,60635.0,60634.0,0.022437]
[1728624705516,0.296884,60630.0,60621.0,0.0002]
[1728624705732,0.023,60632.0,60621.0,0.0002]
[1728624705733,0.26080022,60628.0,60621.0,0.0002]
[1728624705944,0.077,60626.0,60621.0,0.0002]
[1728624706632,0.077,60626.0,60621.0,0.148661]
[1728624706856,0.077,60626.0,60621.0,0.0002]
[1728624707074,0.077,60626.0,60622.0,0.14846]
[1728624707518,0.077,60626.0,60621.0,0.149479]
[1728624708185,0.077,60626.0,60622.0,0.14846]
[1728624708635,0.077,60626.0,60621.0,0.003017]
[1728624708876,0.077,60626.0,60622.0,0.14846]
[1728624709799,0.077,60626.0,60622.0,0.15046]
[1728624710943,0.077,60626.0,60622.0,0.002]
[1728624711913,0.077,60626.0,60622.0,0.004]
[1728624712604,0.077,60626.0,60623.0,0.148458]
[1728624712849,0.077,60626.0,60622.0,0.004]
[1728624713816,0.077,60626.0,60622.0,0.15246]
[1728624714064,0.077,60626.0,60622.0,0.15046]
[1728624714597,0.077,60626.0,60623.0,0.002]
[1728624714834,0.077,60626.0,60622.0,0.15046]
[1728624715307,0.077,60626.0,60622.0,0.15246]
[1728624715545,0.077,60626.0,60622.0,0.15046]
[1728624715793,0.077,60626.0,60622.0,0.002]
[1728624716034,0.077,60626.0,60623.0,0.002]
[1728624716268,0.077,60626.0,60625.0,0.148453]
[1728624718243,0.077,60626.0,60625.0,0.150453]
[1728624718509,0.0766,60630.0,60625.0,0.298906]
[1728624718754,0.0766,60630.0,60628.0,0.148443]
[1728624718988,0.0766,60630.0,60629.0,0.148443]
[1728624719443,0.0766,60630.0,60625.0,0.296906]
[1728624719732,0.0766,60630.0,60627.0,0.148447]
[1728624720237,0.0766,60630.0,60629.0,0.002]
[1728624720468,0.0766,60630.0,60628.0,0.148446]
[1728624720680,0.0766,60630.0,60629.0,0.148443]
[1728624721566,0.0766,60630.0,60627.0,0.148446]
[1728624721822,0.0766,60630.0,60628.0,0.001]
[1728624722043,0.0766,60630.0,60628.0,0.149444]
[1728624722275,0.0766,60630.0,60629.0,0.148443]
[1728624723953,0.0766,60630.0,60629.0,0.002]
[1728624724452,0.0766,60630.0,60629.0,0.148443]
[1728624724682,0.091634,60632.0,60628.0,0.148446]
[1728624725108,0.091634,60632.0,60629.0,0.002]
[1728624725335,0.091634,60632.0,60629.0,0.004]
[1728624725548,0.091634,60632.0,60629.0,0.002]
[1728624725809,0.091634,60632.0,60629.0,0.004]
[1728624726055,0.091634,60632.0,60631.0,0.148438]
[1728624726779,0.091634,60632.0,60630.0,0.148441]
[1728624728123,0.091634,60632.0,60630.0,0.150441]
[1728624728348,0.091634,60632.0,60630.0,0.002]
[1728624728567,0.091634,60632.0,60631.0,0.002]
[1728624728790,0.091634,60632.0,60630.0,0.150441]
[1728624729000,0.001634,60632.0,60630.0,0.152441]
[1728624729429,0.001634,60632.0,60630.0,0.15044]
[1728624729642,0.001634,60632.0,60630.0,0.15244]
[1728624729867,0.001634,60632.0,60630.0,0.15044]
[1728624730305,0.001634,60632.0,60630.0,0.14844]
[1728624730523,0.001634,60632.0,60630.0,0.002]
[1728624731215,0.001634,60632.0,60630.0,0.004]
[1728624731429,0.001634,60632.0,60630.0,0.002]